Cogmind - Beta 15 @@@ ROGUE MODE // 2025.07.20 @ 20:28:36 Player: Rockstar Result: Destroyed by as-65370 with Assembled Blade Performance ------------- Evolutions (0) 0 Regions Visited (2) 400 Robots Destroyed (12) 60 Value Destroyed (328) 328 Prototype IDs (0) 0 Alien Tech Used (0) 0 Bonus (0) 0 TOTAL SCORE: 788 Bonus ------- None Cogmind --------- Core Integrity 0/250 Matter 222/300 Energy 98/100 System Corruption 0% Temperature Hot (202) Movement Core (50) Location -10/Mines Parts ------- > --- POWER (1) -------- (None) > --- PROPULSION (2) --- (None) > --- UTILITY (2) ------ (None) > --- WEAPON (2) ------- (None) > --- INVENTORY (5) ---- Ion Engine Light Ion Engine Decoy Drone Bay Hammer Peak State ------------ > --- POWER ------------ Light Ion Engine > --- PROPULSION ------- Aluminum Leg Aluminum Leg > --- UTILITY ---------- Medium Storage Unit Light Armor Plating > --- WEAPON ----------- Assault Rifle Grenade Launcher > --- INVENTORY -------- Ion Engine Light Ion Engine Light Armor Plating Light Armor Plating Decoy Drone Bay Medium Laser Medium Laser Hammer Hammer [Rating: 9] Favorites ----------- Power Light Ion Engine Engine Light Ion Engine Propulsion Aluminum Leg Leg Aluminum Leg Utility Medium Storage Unit Storage Medium Storage Unit Protection Light Armor Plating Weapon Assault Rifle Energy Gun Medium Laser Ballistic Gun Assault Rifle Launcher Grenade Launcher Build | -11 -10 -10 ------- Run | Yrd Mat Min Slots Evolved . | . . . Power . | . . . Propulsion . | . . . Utility . | . . . Weapon . | . . . Parts Attached 16 | 6 6 4 Power 3 | 1 1 1 Engine 3 | 1 1 1 Core . | . . . Reactor . | . . . Propulsion 3 | 2 1 . Treads . | . . . Leg 3 | 2 1 . Wheel . | . . . Hover . | . . . Flight . | . . . Utility 5 | 1 2 2 Device . | . . . Storage 2 | 1 1 . Processor . | . . . Hackware . | . . . Protection 3 | . 1 2 Artifact . | . . . Weapon 5 | 2 2 1 Energy Gun 3 | 2 . 1 Energy Cannon . | . . . Ballistic Gun 1 | . 1 . Ballistic Cannon . | . . . Launcher 1 | . 1 . Special Weapon . | . . . Impact Weapon . | . . . Slashing Weapon . | . . . Piercing Weapon . | . . . Special Melee Weapon . | . . . Unidentified Prototypes . | . . . Parts Lost 5 | . . 5 Power 1 | . . 1 Propulsion 2 | . . 2 Utility 2 | . . 2 Weapon . | . . . Highest Loss Streak 5 | . . 5 To Critical Strikes . | . . . Average Backups 7 | 1 7 9 Power 2 | . 2 2 Propulsion . | . . . Utility 2 | . 1 2 Weapon 3 | . 2 4 Tool/Special . | . . . Unused Backups 5 | . 1 4 Power 1 | . . 1 Propulsion . | . . . Utility 1 | . . 1 Weapon 3 | . 1 2 Tool/Special . | . . . Average Slot Usage (%) 96 | . 92 98 Engine 13 | . 14 13 Leg 27 | . 28 27 Storage 13 | . 13 14 Protection 11 | . 7 14 Energy Gun 6 | . 14 1 Ballistic Gun 12 | . 11 13 Launcher 9 | . 2 13 Peak Build Rating 9 | 6 8 9 Average Rating 7 | 4 7 8 On Entrance 4 | . 6 8 Naked Turns . | . . . Heaviest Build 21 | 14 21 21 Greatest Support 20 | 20 20 20 Greatest Overweight (x) 1 | 1 1 1 Average Overweight (x) . | . . . Largest Inventory Capacity 10 | 8 10 10 Average Capacity 9 | 6 9 10 Most Carried 10 | 2 10 10 Average Carried 8 | 1 7 9 Final Capacity 10 | 8 10 5 Final Carried 10 | 2 10 5 Class Distribution -------------------- 100% | Mutant Dominant Class ---------------- Mutant | -10/Materials Mutant | -10/Mines Resources | -11 -10 -10 ----------- Run | Yrd Mat Min Matter Collected 393 | 209 108 76 Remotely . | . . . Salvage Created 183 | . 156 27 Parts 12 | . 9 3 Haulers Intercepted . | . . . Recyclers Shooed . | . . . Parts Field Recycled . | . . . Retrieved Matter . | . . . Parts Self-Destructed . | . . . Prevented . | . . . Kills | -11 -10 -10 ------- Run | Yrd Mat Min Combat Hostiles Destroyed 12 | . 7 5 Guns 8 | . 6 2 AOE 4 | . 1 3 Classes Destroyed 3 | . 2 1 Swarmer 6 | . 3 3 Grunt 4 | . 4 . Demolisher 2 | . . 2 Best Kill Streak 4 | . 4 3 Combat Bots Only 4 | . 4 3 Max Kills in Single Turn 3 | . 2 3 Gunslinging . | . . . Exploded 3 | . 1 3 Melee . | . . . Uniques/NPCs Destroyed . | . . . Combat | -11 -10 -10 -------- Run | Yrd Mat Min Hostile Shots Fired 58 | . 28 30 Missed 13 | . 9 4 Hits 45 | . 19 26 Melee 1 | . . 1 Projectile 44 | . 19 25 AOE 17 | . . 17 Damage Taken 1022 | . 213 809 Core 255 | . 38 217 Absorbed by Shields . | . . . Core Remaining (%) 100 | 100 . . Volleys Fired 27 | . 20 7 Largest 2 | . 2 2 Hottest 100 | . 70 100 Shots Fired 54 | . 40 14 Gun 48 | . 36 12 Cannon . | . . . Launcher 6 | . 4 2 Special . | . . . Kinetic 22 | . 20 2 Thermal 26 | . 16 10 Explosive 6 | . 4 2 Electromagnetic . | . . . Robot Hit Streak 8 | . 8 8 Robot Miss Streak 3 | . 3 2 Penetration Max . | . . . Secondary Targets 1 | . . 1 Max Gunslinging Chain 1 | . . 1 Shots Hit Robots 33 | . 24 9 Core Hits 24 | . 14 10 Critical Kills . | . . . Critical Parts Destroyed 1 | . 1 . Critical Strikes 5 | . 4 1 Burn 4 | . 3 1 Destroy 1 | . 1 . Melee Attacks . | . . . Impact . | . . . Slashing . | . . . Piercing . | . . . Sneak Attacks . | . . . Combat Hostiles . | . . . Follow-up Attacks . | . . . Damage Inflicted 833 | . 503 330 Guns 428 | . 309 119 Cannons . | . . . Explosions 405 | . 194 211 Melee . | . . . Ramming . | . . . Kinetic 192 | . 185 7 Thermal 236 | . 124 112 Explosive 405 | . 194 211 Electromagnetic . | . . . Impact . | . . . Slashing . | . . . Piercing . | . . . Highest Corruption . | . . . Average Corruption . | . . . Corruption Purged . | . . . Corruption Blocked . | . . . Overload Shots . | . . . Overflow Damage . | . . . Projectiles . | . . . Explosions . | . . . Melee . | . . . Knockbacks . | . . . Impact . | . . . Kinetic . | . . . Secondary . | . . . Self-Inflicted Damage . | . . . Shots . | . . . Rammed . | . . . Targets Rammed . | . . . Kicked . | . . . Crushed . | . . . Highest Temperature 204 | . 204 202 Average Temperature 76 | . 68 116 Received Heat Transfer 93 | . 93 . Siege Activations . | . . . Martial Activations . | . . . Shielding Activations . | . . . Robots Disrupted . | . . . Combat Hostiles . | . . . Robots Corrupted . | . . . Combat Hostiles . | . . . Parts Fried . | . . . Impact Corruptions . | . . . Robots Melted . | . . . Combat Hostiles . | . . . Parts Melted . | . . . Heat Transferred 999 | . 592 407 Parts Sabotaged . | . . . Parts Stolen . | . . . Parts Stripped . | . . . Power Chain Reactions . | . . . Alert | -11 -10 -10 ------- Run | Yrd Mat Min Maximum Alert Level . | . . . Low Security (%) 100 | 100 100 100 Level 1 . | . . . Level 2 . | . . . Level 3 . | . . . Level 4 . | . . . Level 5 . | . . . High Security . | . . . Max Security . | . . . Peak Influence 192 | . 192 73 Initial 66 | . . 66 Average 36 | . 61 25 Influence Increases 363 | . 232 131 Destroy 0b10 Robot/C 240 | . 140 100 Destroy Leader 50 | . 30 20 Destroy Structure 28 | . 17 11 Lose Combat Pursuer 45 | . 45 . Influence Decreases 331 | . 60 271 Entered New Map 106 | . . 106 Time Decay 207 | . 60 147 Lost Part 18 | . . 18 Squads Dispatched 1 | . 1 . Investigation . | . . . Extermination . | . . . Reinforcement 1 | . 1 . Assault . | . . . Garrison . | . . . Intercept . | . . . Searches Triggered . | . . . Construction Impeded . | . . . Haulers Reinforced . | . . . Active Scanning Responses . | . . . Cargo Convoy Interrupts . | . . . Stealth | -11 -10 -10 --------- Run | Yrd Mat Min Distress Signals 1 | . 1 . Communications Jammed . | . . . Distress Signals . | . . . Times Spotted 31 | . 14 17 Peak Tracking Total 15 | . 4 15 Tactical Retreats 2 | . 2 . Traps | -11 -10 -10 ------- Run | Yrd Mat Min Traps Triggered . | . . . Indirectly . | . . . Trap Hack Attempts . | . . . Triggered . | . . . Disarmed . | . . . Reprogrammed . | . . . Reused . | . . . Traps Extracted . | . . . Installed . | . . . Triggered . | . . . Machines | -11 -10 -10 ---------- Run | Yrd Mat Min Machines Disabled . | . . . Max in Single Turn . | . . . Machines Repaired . | . . . Machines Dismantled . | . . . Machines Sabotaged . | . . . Overloaded Fab Kills . | . . . Hacking | -11 -10 -10 --------- Run | Yrd Mat Min Machines Accessed 5 | . 4 1 Terminals 3 | . 3 . Fabricators . | . . . Repair Stations . | . . . Recycling Units 1 | . 1 . Scanalyzers . | . . . Garrison Access . | . . . Total Hacks 10 | . 9 1 Successful 1 | . . 1 Failed 9 | . 9 . Catastrophic 3 | . 3 . Database Lockouts . | . . . Manual 3 | . 3 . Terminals 7 | . 7 . Fabricators . | . . . Repair Stations . | . . . Recycling Units 2 | . 2 . Scanalyzers . | . . . Garrison Access . | . . . Terminal Hacks 1 | . . 1 Open Door 1 | . . 1 Fabricator Hacks . | . . . Repair Station Hacks . | . . . Recycling Unit Hacks . | . . . Scanalyzer . | . . . Garrison Access Hacks . | . . . Unauthorized Hacks . | . . . Terminals . | . . . Fabricators . | . . . Repair Stations . | . . . Recycling Units . | . . . Scanalyzers . | . . . Garrison Access . | . . . Data Cores Recovered . | . . . Used . | . . . Hacking Detections 4 | . 4 . Full Trace Events . | . . . Feedback Events . | . . . Feedback Blocked . | . . . Robot Schematics Acquired . | . . . Robots Built . | . . . Authchips . | . . . Time . | . . . Total Robot Build Rating . | . . . Part Schematics Acquired . | . . . Parts Built . | . . . Authchips . | . . . Time . | . . . Total Part Build Rating . | . . . Parts Repaired . | . . . Time . | . . . Parts Recycled . | . . . Recycled Matter . | . . . Retrieved Matter . | . . . Retrieved Components . | . . . Parts Scanalyzed . | . . . Part Schematics Acquired . | . . . Parts Damaged . | . . . Bothacking | -11 -10 -10 ------------ Run | Yrd Mat Min Used RIF Installer . | . . . Robots Hacked . | . . . Non-combat . | . . . Combat . | . . . Robot Hacks Applied . | . . . Relay Couplers Released . | . . . Fabnet Peak Effective % . | . . . Robots Rewired . | . . . Allies Hacked . | . . . Hacks Repelled . | . . . Allies | -11 -10 -10 -------- Run | Yrd Mat Min Total Allies . | . . . Largest Group . | . . . Highest-Rated Group . | . . . Highest-Rated Ally . | . . . Total Orders . | . . . Ally Attacks . | . . . Total Damage . | . . . Kills . | . . . Allies Corrupted . | . . . Allies Melted . | . . . Intel | -11 -10 -10 ------- Run | Yrd Mat Min Active Infowar (turns) . | . . . Robot Analysis Total . | . . . Derelict Logs Recovered 2 | . . 2 Drone Launches . | . . . Drone Recoveries . | . . . Exploration | -11 -10 -10 ------------- Run | Yrd Mat Min Turns Passed 750 | 57 268 425 Spaces Moved 394 | 40 144 210 Core 15 | 13 . 2 Treads . | . . . Legs 379 | 27 144 208 Wheels . | . . . Hover . | . . . Flight . | . . . Fastest Speed 50 | 50 120 50 Average Speed 158 | 108 129 188 Slowest Speed 190 | 120 190 190 Overloaded Moves . | . . . Propulsion Burnouts . | . . . Robots Hopped . | . . . Potential Cave-ins . | . . . Cave-ins Triggered . | . . . Exploration Rate (%) 30 | 4 34 52 Regions Visited 2 Branch Regions 1 Pre-discovered Areas . | . . . Known Exits Taken . | . . . Unknown Exits Taken 2 | 1 1 . Scrap Searched 1 | . . 1 Spaces Dug . | . . . Terrain Destroyed 35 | . 24 11 Melee . | . . . Projectile . | . . . AOE 35 | . 24 11 Terrain Rammed . | . . . Walls Destroyed . | . . . Machines Disabled . | . . . Actions | -11 -10 -10 --------- Run | Yrd Mat Min Total 462 | 51 186 225 Wait 7 | 3 4 . Move 392 | 39 143 210 Hop . | . . . Pick Up 12 | 3 8 1 Fast Attach 8 | 5 3 . Attach 5 | 1 1 3 Detach 2 | . 2 . Swap 4 | . 2 2 Drop 5 | . 3 2 Fire 27 | . 20 7 Melee . | . . . Ram . | . . . Kick . | . . . Crush . | . . . Escape Stasis . | . . . Rewire . | . . . Trap . | . . . Miscellaneous . | . . . Route ------- -11/Scrapyard -10/Materials -10/Mines (discovered 1 exit: [*Mat]) History --------- Turn | Location | Event 41 | -11/Scrapyard | Discovered new exit (range 13) 58 | -11/Scrapyard | Entered Materials 299 | -10/Materials | Discovered new exit (range 15) 316 | -10/Materials | Build established: Mutant 326 | -10/Materials | Entered Mines 477 | -10/Mines | Discovered new exit (range 5) 557 | -10/Mines | Found the Drone Emporium 592 | -10/Mines | Learned Materials garrison access intel 598 | -10/Mines | Found Prototype Device 692 | -10/Mines | Learned Materials stockpile data 708 | -10/Mines | Assembled infested the area 739 | -10/Mines | Core integrity fell below 50% 751 | -10/Mines | Core integrity fell below 20% 751 | -10/Mines | Released all parts (4) 751 | -10/Mines | Destroyed by as-65370 with Assembled Blade Last Messages --------------- 00731_ Aluminum Leg destroyed. 00733_ Lgt. Armor Plating destroyed. 00734_ The unstable cave ceiling collapses. 00738_ D-53 Grenadier suffers critical hit (Burn). 00742_ The unstable cave ceiling collapses. 00742_ Aluminum Leg destroyed. 00742_ Lgt. Armor Plating destroyed. 00743_ The unstable cave ceiling collapses. 00745_ D-53 Grenadier destroyed. 00745_ Switching to secondary target: D-53 Grenadier. 00748_ The unstable cave ceiling collapses. 00748_ Destroyed Shock Absorption System. 00748_ D-53 Grenadier destroyed. 00748_ Lgt. Ion Engine destroyed. 00749_ The unstable cave ceiling collapses. 00751_ Released Med. Laser. 00751_ Released Med. Storage Unit. 00751_ Released Lgt. Armor Plating. 00751_ Released Med. Laser. 00751_ U-05 Engineer lays Concrete. Map ----- +----------------------------------------------------+ | ?????????????????????????????????????????????????? | | ?????????????????????????????????????????????????? | | ?????????????????????????????????????????????????? | | ?????????????????????????????????????????????????? | | ?????????????????????????????????????????????????? | | ?????????????????????????????????????????????????? | | ?????????????????????????????????????????????????? | | ?????????????????????????????????????????????????? | | ?????????????????????????????????????????????????? | | ?????????????????????????????????????????????????? | | ?????????????????????????????????????????????????? | | ??????????????????? #????????????????????????????? | | ????????????????? a????????????????????????????? | | ???????????????? < aa#??#????????????????????????? | | ????????????????? a ## ????????????????????????? | | ?????????????????? aa ????????????????????????? | | ?????????????????? a ????????????????????????? | | ??????????????????? a a ????????????????????????? | | ???????????????????? ?????????####???????????? | | ??????????????????### a ????????# ##??????????? | | ??????????????????# ###?????? ##?????????? | | ?????????####?????## a ##???## #?????????? | | ????????? ### # ###### #?????????? | | ???????????# a # #??####???? | | ???????????# u ]! #??## ##??? | | ????????????# [[!@a #??# ##?? | | ???????????????### /[ % ##?# ### | | ????????????????# # # # #?# # | | ????????????????# # #?# """ | | ????????????????### ### ##?## """ | | ??????????????????### ##### #???## """ | | ????????????????????###????# ##??## | | ???????????????????????????## #### # | | ????????????????????????????#### # | | ???????????????????????????????## ## | | ????????????????????????????????## #### | | ?????????????????????????????????# # #??## # | | ?????????????????????????????????# ## ##???## # | | ????????????????? ???????????????# ### #?????#] | | ???????????????? #???????????#### ### #?????#! # | | ????????????????# #???????????# #?????#! # | | ??????????????### ############# ## #####?????# # | | ??????????????# ## ## #??####??## | | ??????????????# ## ## #### ##?# | | ??????????????# ## ## #?# | | ??????????????# ## < #?## | | ??????????????# # ##??# | | ??????????????# ##### #???# | | ??????????????# ##???# #???# | | ??????????????# # ####### ##### | +----------------------------------------------------+ Best States ------------- Heat Dissipation 25 Energy Generation 10 Energy Capacity 250 Matter Stores 260 Matter Capacity 300 Sight Range 16 Terrain Scan Density 10 Armor Coverage 150 Evasion (%) 55 Item Schematics ----------------- None Robot Schematics ------------------ None Fabricated ------------ Nothing Repaired ---------- Nothing Alien Tech Used ----------------- None Achievements -------------- None Challenges ------------ None Game ------ Seed AblativeLinkedRay Manual? 0 Play Time 00:09:47 Cumulative 101.2 hours Start 2025.07.20 @ 20:21:31 End 2025.07.20 @ 20:28:36 Sessions 1 Manual Loads 0 Difficulty Rogue Special Mode None Game No. 96 Rogue 93 Adventurer 1 Explorer 2 Win Type - Total 0 Types 0/0/0/0/0/0/0/0/0/0 Lore% 41 Gallery% 54 Achievement% 39 Wizard Run 0 Options --------- Layout 0 ASCII 0 Keyboard 0 Movement Mouse Keybinds 0 Fullscreen 2 Font 24/Smallcaps Map View 76x50 Zoom Use 0% Tactical HUD 1 Map Filters NONE Filters NONE Steam 1 RUN: 32c336bd-919e-440a-9a4d-541503f08669